fUSD/lending_fUSD_20241223
["ID","MTS","AMOUNT","RATE_DAILY","PERIOD"]
[346470591,1734987038997,-500.0,0.00013698,2]
[346470592,1734987039007,-741.01,0.00013698,2]
[346470593,1734987039017,-500.0,0.00013698,2]
[346470594,1734987039027,-500.0,0.00013698,2]
[346470595,1734987039037,-706.92,0.00013698,2]
[346470596,1734987039046,-926.34,0.00013698,2]
[346470597,1734987039056,-2438.62,0.00013698,2]
[346470598,1734987039065,-500.0,0.00013698,2]
[346470599,1734987039075,-500.0,0.00013698,2]
[346470600,1734987039084,-501.10928318,0.00013698,2]
[346470601,1734987039094,-500.0,0.00013698,2]
[346470602,1734987039103,-11077.64,0.00013698,2]
[346470603,1734987039112,-500.0,0.00013698,2]
[346470604,1734987039122,-1487.74,0.00013698,2]
[346470605,1734987039132,-537.81,0.00013698,2]
[346470606,1734987039141,-500.0,0.00013698,2]
[346470607,1734987039153,-500.0,0.00013698,2]
[346470608,1734987039163,-500.0,0.00013698,2]
[346470609,1734987039172,-6038.31,0.00013698,2]
[346470610,1734987039181,-1125.26,0.00013698,2]
[346470611,1734987039191,-500.0,0.00013698,2]
[346470612,1734987039200,-657.75,0.00013698,2]
[346470613,1734987039210,-500.0,0.00013698,2]
[346470614,1734987039220,-1031.66,0.00013698,2]
[346470615,1734987039229,-500.0,0.00013698,2]
[346470616,1734987039241,-569.77,0.00013698,2]
[346470617,1734987039252,-790.89,0.00013698,2]
[346470618,1734987039262,-1621.06,0.00013698,2]
[346470619,1734987039271,-2570.11,0.00013698,2]
[346470620,1734987039279,-500.0,0.00013698,2]
[346470621,1734987039289,-1539.78,0.00013698,2]
[346470622,1734987039298,-500.0,0.00013698,2]
[346470623,1734987039307,-2663.02,0.00013698,2]
[346470624,1734987039316,-500.0,0.00013698,2]
[346470625,1734987039327,-924.64,0.00013698,2]
[346470626,1734987039335,-500.0,0.00013698,2]
[346470627,1734987039345,-500.0,0.00013698,2]
[346470628,1734987039354,-500.0,0.00013698,2]
[346470629,1734987039363,-500.0,0.00013698,2]
[346470630,1734987039371,-3867.21,0.00013698,2]
[346470631,1734987039380,-500.0,0.00013698,2]
[346470632,1734987039389,-500.0,0.00013698,2]
[346470633,1734987039399,-500.0,0.00013698,2]
[346470634,1734987039410,-875.65,0.00013698,2]
[346470635,1734987039419,-500.0,0.00013698,2]
[346470636,1734987039429,-500.0,0.00013698,2]
[346470637,1734987039440,-616.82,0.00013698,2]
[346470638,1734987039450,-500.0,0.00013698,2]
[346470639,1734987039459,-2318.96,0.00013698,2]
[346470640,1734987039468,-649.3,0.00013698,2]
[346470641,1734987039478,-840.95,0.00013698,2]
[346470642,1734987039487,-500.0,0.00013698,2]
[346470643,1734987039496,-1554.17,0.00013698,2]
[346470644,1734987039506,-500.0,0.00013698,2]
[346470645,1734987039515,-500.0,0.00013698,2]
[346470646,1734987039525,-500.0,0.00013698,2]
[346470647,1734987039534,-500.0,0.00013698,2]
[346470648,1734987039543,-500.0,0.00013698,2]
[346470649,1734987039553,-500.0,0.00013698,2]
[346470650,1734987039563,-1455.27,0.00013698,2]
[346470651,1734987039573,-672.46,0.00013698,2]
[346470652,1734987039583,-500.0,0.00013698,2]
[346470653,1734987039595,-500.0,0.00013698,2]
[346470654,1734987039610,-500.0,0.00013698,2]
[346470655,1734987039619,-1103.67,0.00013698,2]
[346470656,1734987039630,-500.0,0.00013698,2]
[346470657,1734987039639,-2350.1,0.00013698,2]
[346470658,1734987039648,-948.02,0.00013698,2]
[346470659,1734987039661,-2421.81,0.00013698,2]
[346470660,1734987039670,-500.0,0.00013698,2]
[346470661,1734987039680,-500.0,0.00013698,2]
[346470662,1734987039690,-1633.86,0.00013698,2]
[346470663,1734987039699,-997.23,0.00013698,2]
[346470664,1734987039708,-3546.38,0.00013698,2]
[346470665,1734987039718,-1304.52,0.00013698,2]
[346470666,1734987039728,-500.0,0.00013698,2]
[346470667,1734987039738,-868.46,0.00013698,2]
[346470668,1734987039747,-6125.81,0.00013698,2]
[346470669,1734987039757,-3248.38,0.00013698,2]
[346470670,1734987039767,-500.0,0.00013698,2]
[346470671,1734987039776,-1567.94,0.00013698,2]
[346470672,1734987039786,-501.27730481,0.00013698,2]
[346470673,1734987039796,-500.0,0.00013698,2]
[346470674,1734987039805,-12859.73,0.00013698,2]
[346470675,1734987039815,-504.64572839,0.00013698,2]
[346470676,1734987039824,-500.0,0.00013698,2]
[346470677,1734987039835,-500.0,0.00013698,2]
[346470678,1734987039844,-635.86,0.00013698,2]
[346470679,1734987039854,-500.0,0.00013698,2]
[346470680,1734987039864,-4508.8,0.00013698,2]
[346470681,1734987039873,-500.0,0.00013698,2]
[346470682,1734987039883,-500.0,0.00013698,2]
[346470683,1734987039893,-2176.57,0.00013698,2]
[346470684,1734987039904,-500.0,0.00013698,2]
[346470685,1734987039913,-588.76810302,0.00013698,2]
[346470686,1734987039937,-151.80189698,0.00013698,2]
[346470687,1734987039947,-500.0,0.00013698,2]
[346470688,1734987039956,-37.79695301,0.00013698,2]
[346470689,1734987039968,-462.20304699,0.00013698,2]
[346470690,1734987039977,-708.81,0.00013698,2]
[346470691,1734987039986,-530.03,0.00013698,2]
[346470692,1734987039996,-500.0,0.00013698,2]
[346470693,1734987040006,-595.27,0.00013698,2]
[346470694,1734987040015,-500.0,0.00013698,2]
[346470695,1734987040024,-500.0,0.00013698,2]
[346470697,1734987040034,-978.59,0.00013698,2]
[346470698,1734987040043,-758.58,0.00013698,2]
[346470699,1734987040052,-553.65,0.00013698,2]
[346470700,1734987040062,-2795.82,0.00013698,2]
[346470701,1734987040071,-500.0,0.00013698,2]
[346470702,1734987040080,-500.0,0.00013698,2]
[346470703,1734987040089,-1271.20698364,0.00013698,2]
[346470704,1734987040100,-841.51999994,0.00013698,2]
[346470705,1734987040111,-351.62301642,0.00013698,2]
[346470706,1734987040120,-3282.83,0.00013698,2]
[346470707,1734987040129,-6980.54698358,0.00013698,2]
[346470708,1734987040141,-7842.50301642,0.00013698,2]
[346470709,1734987040153,-1283.07,0.00013698,2]
[346470710,1734987040163,-562.07872826,0.00013698,2]
[346470712,1734987040174,-500.0,0.00013698,2]
[346470713,1734987040183,-1014.26,0.00013698,2]
[346470714,1734987040192,-500.0,0.00013698,2]
[346470716,1734987040202,-3105.99,0.00013698,2]
[346470718,1734987040211,-500.0,0.00013698,2]
[346470720,1734987040220,-1029.48,0.00013698,2]
[346470722,1734987040229,-478.30212641,0.00013698,2]
[346470727,1734987042109,-270.82787359,0.00013698,2]
[346470728,1734987042119,-13.350715,0.00013698,2]
[346470729,1734987042135,-1741.259285,0.00013698,2]
[346470730,1734987042145,-1023.0,0.00013698,2]
[346470731,1734987042154,-763.45,0.00013698,2]
[346470732,1734987042164,-472.290715,0.00013698,2]
[346470733,1734987042176,-27.709285,0.00013698,2]
[346470734,1734987042186,-3987.12,0.00013698,2]
[346470735,1734987042195,-2168.4,0.00013698,2]
[346470736,1734987042205,-901.06,0.00013698,2]
[346470737,1734987042215,-1408.13,0.00013698,2]
[346470738,1734987042224,-699.31,0.00013698,2]
[346470739,1734987042233,-293.9706713,0.00013698,2]
[346470740,1734987042605,-206.0293287,0.00013698,2]
[346470741,1734987042614,-558.62,0.00013698,2]
[346470742,1734987042624,-1435.4790713,0.00013698,2]
[346470743,1734987042649,-3116.9509287,0.00013698,2]
[346470744,1734987042662,-1758.19,0.00013698,2]
[346470745,1734987042672,-302.91851434,0.00013698,2]
[346470746,1734987042682,-500.0,0.00013698,2]
[346470747,1734987042691,-2137.72,0.00013698,2]
[346470748,1734987042701,-1776.19,0.00013698,2]
[346470749,1734987042711,-432.35125835,0.00013698,2]
[346470750,1734987042722,-67.64874165,0.00013698,2]
[346470751,1734987042732,-606.37,0.00013698,2]
[346470752,1734987042741,-500.0,0.00013698,2]
[346470753,1734987042751,-2690.84,0.00013698,2]
[346470754,1734987042760,-500.0,0.00013698,2]
[346470755,1734987042770,-301.07764968,0.00013698,2]
[346470802,1734987043662,-2018.21235032,0.00013698,2]
[346470803,1734987043671,-500.0,0.00013698,2]
[346470804,1734987043681,-1110.65,0.00013698,2]
[346470805,1734987043690,-606.32,0.00013698,2]
[346470806,1734987043699,-569.66050297,0.00013698,2]
[346470807,1734987043714,-1133.941,0.00013698,2]
[346470808,1734987043726,-88.02849703,0.00013698,2]
[346470809,1734987043735,-607.86,0.00013698,2]
[346470811,1734987043744,-501.25364909,0.00013698,2]
[346470812,1734987043754,-500.0,0.00013698,2]
[346470814,1734987043763,-500.0,0.00013698,2]
[346470815,1734987043773,-500.0,0.00013698,2]
[346470816,1734987043782,-500.0,0.00013698,2]
[346470817,1734987043791,-500.0,0.00013698,2]
[346470818,1734987043801,-2736.09,0.00013698,2]
[346470819,1734987043810,-500.0,0.00013698,2]
[346470820,1734987043819,-531.25,0.00013698,2]
[346470821,1734987043828,-2513.79,0.00013698,2]
[346470822,1734987043837,-662.16,0.00013698,2]
[346470823,1734987043847,-1069.19,0.00013698,2]
[346470824,1734987043856,-500.0,0.00013698,2]
[346470825,1734987043866,-3624.08,0.00013698,2]
[346470826,1734987043875,-500.0,0.00013698,2]
[346470827,1734987043884,-2572.13,0.00013698,2]
[346470828,1734987043894,-876.99,0.00013698,2]
[346470829,1734987043904,-500.0,0.00013698,2]
[346470830,1734987043913,-648.5,0.00013698,2]
[346470831,1734987043923,-3811.23,0.00013698,2]
[346470832,1734987043932,-555.18,0.00013698,2]
[346470833,1734987043942,-11995.85510213,0.00013698,2]
[346470834,1734987043958,-1356.17489787,0.00013698,2]
[346470835,1734987043967,-500.0,0.00013698,2]
[346470836,1734987043976,-500.0,0.00013698,2]
[346470837,1734987043986,-2358.82,0.00013698,2]
[346470838,1734987043995,-1465.48,0.00013698,2]
[346470839,1734987044004,-5100.03,0.00013698,2]
[346470841,1734987044014,-572.55,0.00013698,2]
[346470842,1734987044023,-469.17308139,0.00013698,2]
[346470844,1734987044034,-869.09691861,0.00013698,2]
[346470845,1734987044043,-50.87608138,0.00013698,2]
[346470846,1734987044054,-902.67391862,0.00013698,2]
[346470847,1734987044064,-588.75,0.00013698,2]
[346470848,1734987044073,-7900.05,0.00013698,2]
[346470849,1734987044082,-1727.41,0.00013698,2]
[346470850,1734987044091,-500.63018315,0.00013698,2]
[346470851,1734987044101,-573.66,0.00013698,2]
[346470852,1734987044110,-2772.0,0.00013698,2]
[346470853,1734987044119,-4408.75,0.00013698,2]
[346470854,1734987044128,-4622.77,0.00013698,2]
[346470855,1734987044137,-1235.9267258,0.00013698,2]
[346470856,1734987044148,-884.0132742,0.00013698,2]
[346470857,1734987044158,-500.0,0.00013698,2]
[346470858,1734987044167,-500.0,0.00013698,2]
[346470859,1734987044176,-603.68,0.00013698,2]
[346470860,1734987044185,-500.0,0.00013698,2]
[346470861,1734987044195,-547.41,0.00013698,2]
[346470862,1734987044204,-1846.71,0.00013698,2]
[346470863,1734987044213,-426.86229025,0.00013698,2]
[346470864,1734987044222,-500.0,0.00013698,2]
[346470865,1734987044231,-856.77,0.00013698,2]
[346470866,1734987044240,-2979.11,0.00013698,2]
[346470867,1734987044252,-739.21,0.00013698,2]
[346470868,1734987044262,-2890.26,0.00013698,2]
[346470869,1734987044271,-2827.93,0.00013698,2]
[346470870,1734987044280,-6833.95,0.00013698,2]
[346470871,1734987044290,-1269.07,0.00013698,2]
[346470872,1734987044300,-1927.62,0.00013698,2]
[346470873,1734987044309,-942.86,0.00013698,2]
[346470874,1734987044319,-906.1,0.00013698,2]
[346470875,1734987044328,-544.74,0.00013698,2]
[346470876,1734987044338,-500.0,0.00013698,2]
[346470877,1734987044348,-500.0,0.00013698,2]
[346470878,1734987044357,-500.0,0.00013698,2]
[346470879,1734987044366,-2836.9,0.00013698,2]
[346470880,1734987044375,-4937.08,0.00013698,2]
[346470881,1734987044384,-2415.72443555,0.00013698,2]
[346470882,1734987044402,-292.45556445,0.00013698,2]
[346470883,1734987044413,-145.46476776,0.00013698,2]
[346470884,1734987044424,-285.2235695,0.00013698,2]
[346470885,1734987044436,-69.31166274,0.00013698,2]
[346470886,1734987044444,-394.92472144,0.00013698,2]
[346470887,1734987044456,-2751.32527856,0.00013698,2]
[346470888,1734987044465,-205.93730183,0.00013698,2]
[346470892,1734987046639,-620.04269817,0.00013698,2]
[346470893,1734987046649,-500.0,0.00013698,2]
[346470894,1734987046660,-2638.64,0.00013698,2]
[346470895,1734987046669,-1480.77,0.00013698,2]
[346470896,1734987046679,-836.83,0.00013698,2]
[346470897,1734987046689,-500.0,0.00013698,2]
[346470898,1734987046699,-594.59,0.00013698,2]
[346470899,1734987046709,-222.20627085,0.00013698,2]
[346470900,1734987046718,-500.0,0.00013698,2]
[346470901,1734987046727,-4661.21947472,0.00013698,2]
[346470902,1734987046739,-628.56052528,0.00013698,2]
[346470903,1734987046748,-8627.73,0.00013698,2]
[346470904,1734987046757,-500.0,0.00013698,2]
[346470905,1734987046766,-5852.36,0.00013698,2]
[346470906,1734987046775,-500.0,0.00013698,2]
[346470907,1734987046915,-500.0,0.00013698,2]
[346470909,1734987046941,-500.0,0.00013698,2]
[346470910,1734987046950,-1122.5,0.00013698,2]
[346470911,1734987046959,-819.36,0.00013698,2]
[346470912,1734987046968,-500.0,0.00013698,2]
[346470913,1734987046977,-5967.52,0.00013698,2]
[346470914,1734987046987,-3918.38,0.00013698,2]
[346470915,1734987046996,-20590.49939472,0.00013698,2]
[346470916,1734987047008,-411.91461297,0.00013698,2]
[346470917,1734987047019,-2330.99403045,0.00013698,2]
[346470918,1734987047055,-2215.95196186,0.00013698,2]
[346470919,1734987047063,-500.0,0.00013698,2]
[346470920,1734987047073,-500.0,0.00013698,2]
[346470921,1734987047083,-606.15,0.00013698,2]
[346470922,1734987047092,-500.0,0.00013698,2]
[346470923,1734987047101,-500.0,0.00013698,2]
[346470924,1734987047110,-502.62073221,0.00013698,2]
[346470925,1734987047119,-6832.96071418,0.00013698,2]
[346470926,1734987047130,-1102.15734889,0.00013698,2]
[346470927,1734987052208,6000.0,0.0002662,60]
[346470928,1734987108680,1026.49,0.00011493,2]
[346470930,1734987523786,7000.0,0.00026621,60]
[346470933,1734987852435,3000.0,0.00026647,120]
[346470934,1734987993473,172.1,0.00010137,2]
[346470947,1734988215211,997.68,0.00010802,2]
[346470961,1734988231495,-250.0,0.00012734,2]
[346470962,1734988231505,-300.0,0.00012887,2]
[346470963,1734988231514,-4938.61886519,0.00012888,2]
[346470964,1734988231525,-370.31153106,0.00012888,2]
[346470965,1734988231535,-388.79,0.00012888,2]
[346470966,1734988231546,-1080.79234568,0.00012888,2]
[346470967,1734988231557,-1028.79,0.00012888,2]
[346470968,1734988231617,-10191.39638117,0.00012888,2]
[346470969,1734988231679,-290.54130537,0.00012888,2]
[346470970,1734988231692,-2413.56537073,0.00012888,2]
[346470971,1734988231730,-3197.1942008,0.00012888,2]
[346470972,1734988231739,-164.09,0.00012946,2]
[346470973,1734988231748,-375.35,0.00013057,2]
[346470974,1734988231756,-997.68,0.00013066,2]
[346470975,1734988231766,-716.16,0.00013114,2]
[346470976,1734988231775,-386.21,0.00013127,2]
[346470977,1734988231784,-1000.0,0.00013132,2]
[346470978,1734988231793,-250.0,0.00013172,2]
[346470979,1734988231802,-500.0,0.00013357,2]
[346470980,1734988231811,-816.17,0.00013366,2]
[346470981,1734988231820,-250.0,0.00013373,2]
[346470982,1734988231829,-381.0,0.00013425,2]
[346470983,1734988231838,-3000.0,0.0001356,2]
[346470984,1734988231847,-500.0,0.00013562,2]
[346470985,1734988231856,-170.58741443,0.00013598,2]
[346470986,1734988231866,-14540.7237566,0.00013598,2]
[346470987,1734988231875,-29720.46644973,0.00013598,2]
[346470988,1734988231884,-1541.4,0.00013616,2]
[346470989,1734988231893,-428.97090145,0.00013665,2]
[346470990,1734988231903,-340.90471347,0.00013696,2]
[346470991,1734988231913,-365.25932048,0.00013697,2]
[346470992,1734988231924,-500.0,0.00013697,2]
[346470993,1734988231933,-588.35691122,0.00013697,2]
[346470994,1734988231943,-500.0,0.00013697,2]
[346470995,1734988231952,-500.0,0.00013697,2]
[346470996,1734988231963,-500.0,0.00013697,2]
[346470997,1734988231972,-500.0,0.00013697,2]
[346470998,1734988231981,-500.0,0.00013697,2]
[346470999,1734988231991,-632.45828651,0.00013697,2]
[346471000,1734988232000,-500.0,0.00013697,2]
[346471001,1734988232009,-7500.0,0.00013697,2]
[346471002,1734988232018,-7500.0,0.00013697,2]
[346471003,1734988232027,-7500.0,0.00013697,2]
[346471004,1734988232036,-5635.94421023,0.00013697,2]
[346471005,1734988232048,-1864.05578977,0.00013697,2]
[346471006,1734988232057,-500.0,0.00013698,2]
[346471007,1734988232066,-500.0,0.00013698,2]
[346471008,1734988232075,-500.0,0.00013698,2]
[346471009,1734988232084,-500.0,0.00013698,2]
[346471010,1734988232093,-881.8,0.00013698,2]
[346471011,1734988232102,-684.88,0.00013698,2]
[346471012,1734988232111,-500.0,0.00013698,2]
[346471013,1734988232120,-500.0,0.00013698,2]
[346471014,1734988232130,-500.0,0.00013698,2]
[346471015,1734988232139,-500.0,0.00013698,2]
[346471016,1734988232148,-739.19,0.00013698,2]
[346471017,1734988232158,-712.52,0.00013698,2]
[346471018,1734988232169,-500.0,0.00013698,2]
[346471019,1734988232178,-500.0,0.00013698,2]
[346471020,1734988232188,-500.0,0.00013698,2]
[346471021,1734988232198,-500.0,0.00013698,2]
[346471022,1734988232207,-500.0,0.00013698,2]
[346471023,1734988232216,-500.0,0.00013698,2]
[346471024,1734988232225,-500.0,0.00013698,2]
[346471025,1734988232234,-500.0,0.00013698,2]
[346471026,1734988232243,-500.0,0.00013698,2]
[346471027,1734988232252,-500.0,0.00013698,2]
[346471028,1734988232261,-500.0,0.00013698,2]
[346471029,1734988232270,-500.0,0.00013698,2]
[346471030,1734988232279,-500.0,0.00013698,2]
[346471031,1734988232288,-810.38,0.00013698,2]
[346471032,1734988232297,-500.0,0.00013698,2]
[346471033,1734988232306,-500.0,0.00013698,2]
[346471034,1734988232315,-500.0,0.00013698,2]
[346471035,1734988232324,-968.97,0.00013698,2]
[346471036,1734988232333,-500.0,0.00013698,2]
[346471037,1734988232342,-500.0,0.00013698,2]
[346471038,1734988232351,-533.78,0.00013698,2]
[346471039,1734988232360,-500.0,0.00013698,2]
[346471040,1734988232369,-500.0,0.00013698,2]
[346471041,1734988232378,-500.0,0.00013698,2]
[346471042,1734988232387,-936.86,0.00013698,2]
[346471043,1734988232397,-500.0,0.00013698,2]
[346471044,1734988232407,-500.0,0.00013698,2]
[346471045,1734988232418,-500.0,0.00013698,2]
[346471046,1734988232427,-500.0,0.00013698,2]
[346471047,1734988232436,-500.0,0.00013698,2]
[346471048,1734988232446,-500.0,0.00013698,2]
[346471049,1734988232456,-500.0,0.00013698,2]
[346471050,1734988232465,-500.0,0.00013698,2]
[346471051,1734988232474,-593.06,0.00013698,2]
[346471052,1734988232483,-576.02,0.00013698,2]
[346471053,1734988232492,-500.0,0.00013698,2]
[346471054,1734988232501,-500.0,0.00013698,2]
[346471055,1734988232510,-548.53,0.00013698,2]
[346471056,1734988232519,-740.15,0.00013698,2]
[346471057,1734988232528,-500.0,0.00013698,2]
[346471058,1734988232537,-500.0,0.00013698,2]
[346471059,1734988232808,-775.45,0.00013698,2]
[346471060,1734988232817,-500.0,0.00013698,2]
[346471061,1734988232826,-153.883577,0.00013698,2]
[346471062,1734988232835,-155.940262,0.00013698,2]
[346471063,1734988232845,-500.0,0.00013698,2]
[346471064,1734988232855,-1678.835265,0.00013698,2]
[346471065,1734988232865,-500.0,0.00013698,2]
[346471066,1734988232874,-500.0,0.00013698,2]
[346471067,1734988232883,-500.0,0.00013698,2]
[346471068,1734988232893,-500.0,0.00013698,2]
[346471069,1734988232903,-500.0,0.00013698,2]
[346471070,1734988232914,-500.0,0.00013698,2]
[346471071,1734988232924,-500.0,0.00013698,2]
[346471072,1734988232933,-2008.953666,0.00013698,2]
[346471073,1734988232943,-1212.37,0.00013698,2]
[346471074,1734988232952,-500.0,0.00013698,2]
[346471075,1734988232961,-969.34,0.00013698,2]
[346471076,1734988232970,-500.0,0.00013698,2]
[346471077,1734988232980,-505.39490859,0.00013698,2]
[346471078,1734988232990,-500.0,0.00013698,2]
[346471079,1734988233000,-500.0,0.00013698,2]
[346471080,1734988233009,-500.0,0.00013698,2]
[346471081,1734988233019,-500.0,0.00013698,2]
[346471082,1734988233029,-894.51,0.00013698,2]
[346471083,1734988233039,-718.58,0.00013698,2]
[346471084,1734988233048,-505.73416889,0.00013698,2]
[346471085,1734988233057,-500.0,0.00013698,2]
[346471086,1734988233067,-500.0,0.00013698,2]
[346471087,1734988233077,-1099.23,0.00013698,2]
[346471088,1734988233087,-500.0,0.00013698,2]
[346471089,1734988233097,-500.0,0.00013698,2]
[346471090,1734988233107,-500.0,0.00013698,2]
[346471091,1734988233117,-500.0,0.00013698,2]
[346471092,1734988233126,-500.0,0.00013698,2]
[346471093,1734988233136,-500.0,0.00013698,2]
[346471094,1734988233146,-500.0,0.00013698,2]
[346471095,1734988233156,-561.6885623,0.00013698,2]
[346471096,1734988233167,-1112.41,0.00013698,2]
[346471097,1734988233176,-702.86,0.00013698,2]
[346471098,1734988233186,-500.0,0.00013698,2]
[346471099,1734988233203,-500.0,0.00013698,2]
[346471100,1734988233213,-500.0,0.00013698,2]
[346471101,1734988233223,-558.13415939,0.00013698,2]
[346471102,1734988233233,-500.0,0.00013698,2]
[346471103,1734988233243,-500.0,0.00013698,2]
[346471104,1734988233253,-500.0,0.00013698,2]
[346471105,1734988233262,-500.0,0.00013698,2]
[346471106,1734988233272,-500.0,0.00013698,2]
[346471107,1734988233281,-500.0,0.00013698,2]
[346471108,1734988233291,-500.0,0.00013698,2]
[346471109,1734988233301,-286.95529894,0.00013698,2]
[346471110,1734988233311,-500.0,0.00013698,2]
[346471111,1734988233321,-500.0,0.00013698,2]
[346471112,1734988233330,-500.0,0.00013698,2]
[346471113,1734988233340,-500.0,0.00013698,2]
[346471114,1734988233349,-500.0,0.00013698,2]
[346471115,1734988233359,-150.0,0.00013698,2]
[346471116,1734988233369,-694.9,0.00013698,2]
[346471117,1734988233378,-500.0,0.00013698,2]
[346471118,1734988233387,-500.0,0.00013698,2]
[346471119,1734988233398,-500.0,0.00013698,2]
[346471120,1734988233408,-500.0,0.00013698,2]
[346471121,1734988233421,-500.40986044,0.00013698,2]
[346471122,1734988233431,-500.0,0.00013698,2]
[346471123,1734988233441,-500.0,0.00013698,2]
[346471124,1734988233450,-500.0,0.00013698,2]
[346471125,1734988233460,-500.0,0.00013698,2]
[346471126,1734988233471,-500.0,0.00013698,2]
[346471127,1734988233480,-500.0,0.00013698,2]
[346471128,1734988233490,-500.0,0.00013698,2]
[346471129,1734988233499,-500.0,0.00013698,2]
[346471130,1734988233509,-500.0,0.00013698,2]
[346471131,1734988233519,-500.0,0.00013698,2]
[346471132,1734988233529,-500.0,0.00013698,2]
[346471133,1734988233538,-500.0,0.00013698,2]
[346471134,1734988233547,-500.0,0.00013698,2]
[346471135,1734988233556,-700.62,0.00013698,2]
[346471136,1734988233566,-885.29,0.00013698,2]
[346471137,1734988233576,-503.36024694,0.00013698,2]
[346471138,1734988233586,-500.0,0.00013698,2]
[346471139,1734988233599,-500.0,0.00013698,2]
[346471140,1734988233609,-739.17,0.00013698,2]
[346471141,1734988233618,-565.16,0.00013698,2]
[346471142,1734988233628,-1336.06,0.00013698,2]
[346471143,1734988233639,-500.0,0.00013698,2]
[346471144,1734988233648,-500.0,0.00013698,2]
[346471145,1734988233659,-1040.09,0.00013698,2]
[346471146,1734988233671,-500.0,0.00013698,2]
[346471147,1734988233682,-500.0,0.00013698,2]
[346471148,1734988233692,-541.71,0.00013698,2]
[346471149,1734988233701,-500.0,0.00013698,2]
[346471150,1734988233711,-500.0,0.00013698,2]
[346471151,1734988233721,-1619.84,0.00013698,2]
[346471152,1734988233731,-945.59,0.00013698,2]
[346471153,1734988233742,-500.0,0.00013698,2]
[346471154,1734988233752,-500.0,0.00013698,2]
[346471155,1734988233762,-945.65,0.00013698,2]
[346471156,1734988233772,-500.0,0.00013698,2]
[346471157,1734988233782,-500.0,0.00013698,2]
[346471158,1734988233792,-1795.22,0.00013698,2]
[346471159,1734988233802,-506.04973454,0.00013698,2]
[346471160,1734988233811,-500.0,0.00013698,2]
[346471161,1734988233821,-500.0,0.00013698,2]
[346471162,1734988233830,-332.78140525,0.00013698,2]
[346471163,1734988233840,-500.0,0.00013698,2]
[346471164,1734988233850,-517.05002436,0.00013698,2]
[346471165,1734988233860,-500.0,0.00013698,2]
[346471166,1734988233870,-1282.37,0.00013698,2]
[346471167,1734988233880,-500.0,0.00013698,2]
[346471168,1734988233890,-500.0,0.00013698,2]
[346471169,1734988233900,-500.0,0.00013698,2]
[346471170,1734988233910,-500.0,0.00013698,2]
[346471171,1734988233925,-500.0,0.00013698,2]
[346471172,1734988233935,-858.83,0.00013698,2]
[346471173,1734988233945,-500.0,0.00013698,2]
[346471174,1734988233955,-545.8554983,0.00013698,2]
[346471175,1734988233965,-500.0,0.00013698,2]
[346471176,1734988233975,-500.0,0.00013698,2]
[346471177,1734988233985,-500.0,0.00013698,2]
[346471178,1734988233996,-1037.63,0.00013698,2]
[346471179,1734988234007,-500.0,0.00013698,2]
[346471180,1734988234016,-500.0,0.00013698,2]
[346471181,1734988234026,-500.0,0.00013698,2]
[346471182,1734988234036,-500.0,0.00013698,2]